fUSD/lending_fUSD_20260329
["ID","MTS","AMOUNT","RATE_DAILY","PERIOD"]
[419040264,1774800648028,-308.596084,0.00016,2]
[419040265,1774800648038,-308.596084,0.00016,2]
[419040266,1774800648048,-308.596084,0.00016,2]
[419040267,1774800648058,-308.596084,0.00016,2]
[419040268,1774800648068,-308.596084,0.00016,2]
[419040269,1774800648078,-308.596075,0.00016,2]
[419040270,1774800648088,-151.0,0.00016,2]
[419040271,1774800648098,-151.0,0.00016,2]
[419040272,1774800648108,-151.0,0.00016,2]
[419040273,1774800648119,-151.0,0.00016,2]
[419040274,1774800648129,-151.0,0.00016,2]
[419040275,1774800648140,-151.0,0.00016,2]
[419040276,1774800648150,-151.0,0.00016,2]
[419040277,1774800648160,-166.899042,0.00016,2]
[419040278,1774800648170,-166.899042,0.00016,2]
[419040279,1774800648180,-166.899042,0.00016,2]
[419040280,1774800648191,-166.899042,0.00016,2]
[419040281,1774800648201,-166.899042,0.00016,2]
[419040282,1774800648212,-166.899042,0.00016,2]
[419040283,1774800648222,-166.899042,0.00016,2]
[419040284,1774800648232,-166.899042,0.00016,2]
[419040285,1774800648242,-166.899042,0.00016,2]
[419040286,1774800648252,-166.899042,0.00016,2]
[419040287,1774800648262,-166.899042,0.00016,2]
[419040288,1774800648272,-166.899034,0.00016,2]
[419040289,1774800648282,-151.0,0.00016,2]
[419040290,1774800648293,-151.0,0.00016,2]
[419040291,1774800648303,-151.0,0.00016,2]
[419040292,1774800648313,-214.766298,0.00016,2]
[419040293,1774800648323,-150.0,0.00016,2]
[419040294,1774800648333,-20296.91609346,0.00016,2]
[419040295,1774800648343,-150.0,0.00016,2]
[419040296,1774800648352,-4828.42151533,0.00016,2]
[419040297,1774800648362,-150.0,0.00016,2]
[419040298,1774800648372,-6653.35468478,0.00016,2]
[419040299,1774800648382,-500.0,0.00016,2]
[419040300,1774800648392,-500.0,0.00016,2]
[419040301,1774800648401,-500.0,0.00016,2]
[419040302,1774800648411,-500.0,0.00016,2]
[419040303,1774800648421,-500.0,0.00016,2]
[419040304,1774800648431,-500.0,0.00016,2]
[419040305,1774800648441,-500.0,0.00016,2]
[419040306,1774800648451,-348.6958457,0.00016,2]
[419040307,1774800648462,-200.0,0.00016,2]
[419040308,1774800648472,-653.9183247,0.00016,2]
[419040309,1774800648482,-200.0,0.00016,3]
[419040310,1774800648493,-2000.0,0.00016,2]
[419040311,1774800648503,-200.0,0.00016,2]
[419040312,1774800648513,-1187.6136825,0.00016,2]
[419040313,1774800648523,-1497604.69257624,0.00016,2]
[419040314,1774800649534,-450.0,0.00014232,2]
[419040315,1774800649637,-879.0,0.00014232,2]
[419040316,1774800649647,-9922.73117208,0.00016,2]
[419040319,1774801833099,-1046.42972454,0.00010781,2]
[419040320,1774801833130,-253.57027546,0.00010781,2]
[419040321,1774801833140,-475.42972454,0.00011427,2]
[419040322,1774801833152,-1024.57027546,0.00011427,2]
[419040323,1774801833162,-991.23459873,0.00011435,2]
[419040324,1774801833174,-608.76540127,0.00011435,2]
[419040325,1774801833184,-209.21,0.00011547,2]
[419040326,1774801833193,-1400.0,0.000116,4]
[419040327,1774801833207,-337.64891496,0.00011628,2]
[419040328,1774801833235,-162.35108504,0.00011628,2]
[419040329,1774801833245,-150.0,0.00011659,2]
[419040330,1774801833254,-1188.00891496,0.00011699,2]
[419040331,1774801833269,-11.99108504,0.00011699,2]
[419040332,1774801833279,-1083.57521277,0.000117,4]
[419040333,1774801833291,-1716.42478723,0.000117,4]
[419040334,1774801833301,-300.0,0.00011799,2]
[419040335,1774801833310,-300.0,0.00011799,2]
[419040336,1774801833319,-4300.0,0.000118,4]
[419040337,1774801833329,-900.0,0.00011802,2]
[419040338,1774801833338,-154.55748469,0.00011859,2]
[419040339,1774801833347,-5700.0,0.000119,4]
[419040340,1774801833356,-142.40244214,0.00012,2]
[419040341,1774801833369,-509.62580282,0.00012,2]
[419040342,1774801833378,-1577.23996791,0.00012,2]
[419040343,1774801833388,-3420.03166565,0.00012,2]
[419040344,1774801833397,-2188.3609222,0.00012,2]
[419040345,1774801833407,-150.0,0.00012072,2]
[419040346,1774801833418,-24721.55760312,0.00012073,2]
[419040347,1774801833428,-177.96010828,0.00012073,2]
[419040348,1774801833439,-567.52951658,0.00012088,2]
[419040349,1774801833448,-539.03269786,0.00012088,2]
[419040350,1774801833458,-9999.99,0.00012103,2]
[419040351,1774801833468,-150.99,0.00012103,2]
[419040352,1774801833478,-999.99,0.00012103,2]
[419040353,1774801833488,-4141.48,0.00012103,2]
[419040354,1774801833497,-1246.68064966,0.00012163,2]
[419040355,1774801833507,-1246.68064966,0.00012163,2]
[419040356,1774801833518,-500.0,0.00012172,2]
[419040357,1774801833528,-500.0,0.00012172,2]
[419040358,1774801833537,-500.0,0.00012172,2]
[419040359,1774801833547,-462.38733665,0.00012172,2]
[419040360,1774801833557,-270.59600102,0.00012172,2]
[419040361,1774801833567,-496.72348396,0.00012172,2]
[419040362,1774801833577,-500.0,0.00012172,2]
[419040363,1774801833586,-500.0,0.00012172,2]
[419040364,1774801833596,-392.38607579,0.00012172,2]
[419040365,1774801833606,-500.0,0.00012172,2]
[419040366,1774801833615,-500.0,0.00012172,2]
[419040367,1774801833624,-500.0,0.00012172,2]
[419040368,1774801833634,-500.0,0.00012172,2]
[419040369,1774801833644,-500.0,0.00012172,2]
[419040370,1774801833654,-500.0,0.00012172,2]
[419040371,1774801833664,-500.0,0.00012172,2]
[419040372,1774801833675,-335.44712397,0.00012172,2]
[419040373,1774801833687,-448.56821676,0.00012172,2]
[419040374,1774801833697,-324.95686463,0.00012172,2]
[419040375,1774801833707,-500.0,0.00012172,2]
[419040376,1774801833718,-500.0,0.00012172,2]
[419040377,1774801833727,-500.0,0.00012172,2]
[419040378,1774801833737,-500.0,0.00012172,2]
[419040379,1774801833747,-500.0,0.00012172,2]
[419040380,1774801833757,-500.0,0.00012172,2]
[419040381,1774801833767,-500.0,0.00012172,2]
[419040382,1774801833778,-500.0,0.00012172,2]
[419040383,1774801833787,-500.0,0.00012172,2]
[419040384,1774801833797,-500.0,0.00012172,2]
[419040385,1774801833807,-500.0,0.00012172,2]
[419040386,1774801833816,-500.0,0.00012172,2]
[419040387,1774801833826,-500.0,0.00012172,2]
[419040388,1774801833836,-500.0,0.00012172,2]
[419040389,1774801833846,-500.0,0.00012172,2]
[419040390,1774801833856,-500.0,0.00012172,2]
[419040391,1774801833866,-468.46799702,0.00012172,2]
[419040392,1774801833876,-500.0,0.00012172,2]
[419040393,1774801833886,-500.0,0.00012172,2]
[419040394,1774801833896,-500.0,0.00012172,2]
[419040395,1774801833905,-500.0,0.00012172,2]
[419040396,1774801833915,-500.0,0.00012172,2]
[419040397,1774801833924,-500.0,0.00012172,2]
[419040398,1774801833933,-500.0,0.00012172,2]
[419040399,1774801833943,-500.0,0.00012172,2]
[419040400,1774801833953,-500.0,0.00012172,2]
[419040401,1774801833963,-500.0,0.00012172,2]
[419040402,1774801833973,-500.0,0.00012172,2]
[419040403,1774801833982,-500.0,0.00012172,2]
[419040404,1774801833993,-500.0,0.00012172,2]
[419040405,1774801834003,-500.0,0.00012172,2]
[419040406,1774801834012,-500.0,0.00012172,2]
[419040407,1774801834022,-500.0,0.00012172,2]
[419040408,1774801834032,-500.0,0.00012172,2]
[419040409,1774801834041,-500.0,0.00012172,2]
[419040410,1774801834051,-500.0,0.00012172,2]
[419040411,1774801834060,-500.0,0.00012172,2]
[419040412,1774801834070,-500.0,0.00012172,2]
[419040413,1774801834080,-500.0,0.00012172,2]
[419040414,1774801834090,-500.0,0.00012172,2]
[419040415,1774801834100,-500.0,0.00012172,2]
[419040416,1774801834109,-500.0,0.00012172,2]
[419040417,1774801834119,-500.0,0.00012172,2]
[419040418,1774801834128,-500.0,0.00012172,2]
[419040419,1774801834138,-500.0,0.00012172,2]
[419040420,1774801834148,-500.0,0.00012172,2]
[419040421,1774801834157,-500.0,0.00012172,2]
[419040422,1774801834167,-500.0,0.00012172,2]
[419040423,1774801834176,-500.0,0.00012172,2]
[419040424,1774801834187,-500.0,0.00012172,2]
[419040425,1774801834196,-500.0,0.00012172,2]
[419040426,1774801834206,-500.0,0.00012172,2]
[419040427,1774801834216,-500.0,0.00012172,2]
[419040428,1774801834227,-500.0,0.00012172,2]
[419040429,1774801834237,-500.0,0.00012172,2]
[419040430,1774801834246,-500.0,0.00012172,2]
[419040431,1774801834255,-500.0,0.00012172,2]
[419040432,1774801834265,-500.0,0.00012172,2]
[419040433,1774801834274,-500.0,0.00012172,2]
[419040434,1774801834285,-218.85947224,0.00012172,2]
[419040435,1774801834295,-500.0,0.00012172,2]
[419040436,1774801834305,-500.0,0.00012172,2]
[419040437,1774801834314,-500.0,0.00012172,2]
[419040438,1774801834323,-521.88594722,0.00012172,2]
[419040439,1774801834333,-500.0,0.00012172,2]
[419040440,1774801834342,-500.0,0.00012172,2]
[419040441,1774801834352,-500.0,0.00012172,2]
[419040442,1774801834361,-500.0,0.00012172,2]
[419040443,1774801834371,-500.0,0.00012172,2]
[419040444,1774801834381,-500.0,0.00012172,2]
[419040445,1774801834391,-500.0,0.00012172,2]
[419040446,1774801834400,-500.0,0.00012172,2]
[419040447,1774801834410,-500.0,0.00012173,2]
[419040448,1774801834420,-500.0,0.00012173,2]
[419040449,1774801834430,-370.62839673,0.00012173,2]
[419040450,1774801834439,-500.0,0.00012173,2]
[419040451,1774801834449,-500.0,0.00012173,2]
[419040452,1774801834459,-500.0,0.00012173,2]
[419040453,1774801834469,-500.0,0.00012173,2]
[419040454,1774801834479,-1500000.0,0.00012173,2]
[419040455,1774801834488,-82284.70409187,0.00012173,2]
[419040456,1774801834504,-46130.52113281,0.00012173,2]
[419040457,1774801834516,-94583.78041099,0.00012173,2]
[419040458,1774801834537,-1254.41808677,0.00012173,2]
[419040461,1774801837702,-1170.75638054,0.00012173,2]
[419040462,1774801837731,-44430.30828333,0.00012173,2]
[419040463,1774801837839,-34443.99712,0.00012173,2]
[419040464,1774801837851,-354.9210516,0.00012173,2]
[419040465,1774801837864,-2195346.59344209,0.00012173,2]
[419040467,1774801838157,-209.21,0.00012188,2]
[419040468,1774801838193,-2500.0,0.00012222,2]
[419040469,1774801838203,-5619.31,0.00012272,2]
[419040470,1774801838212,-354.408,0.00012272,2]
[419040471,1774801838221,-41184.81579617,0.00012273,2]
[419040472,1774801838231,-500.0,0.00012315,2]
[419040473,1774801838241,-500.0,0.00012315,2]
[419040474,1774801838250,-500.0,0.00012315,2]
[419040475,1774801838260,-500.0,0.00012315,2]
[419040476,1774801838269,-500.0,0.00012315,2]
[419040477,1774801838279,-500.0,0.00012315,2]
[419040478,1774801838289,-500.0,0.00012315,2]
[419040479,1774801838299,-500.0,0.00012315,2]
[419040480,1774801838309,-500.0,0.00012315,2]
[419040481,1774801838319,-200.0,0.00012315,2]
[419040482,1774801838328,-500.0,0.00012315,2]
[419040483,1774801838338,-500.0,0.00012315,2]
[419040484,1774801838347,-500.0,0.00012315,2]
[419040485,1774801838356,-151.0,0.00012315,2]
[419040486,1774801838366,-151.0,0.00012315,2]
[419040487,1774801838375,-151.0,0.00012315,2]
[419040488,1774801838384,-151.0,0.00012315,2]
[419040489,1774801838394,-500.0,0.00012315,2]
[419040490,1774801838404,-151.0,0.00012315,2]
[419040491,1774801838413,-500.0,0.00012315,2]
[419040492,1774801838423,-151.0,0.00012315,2]
[419040493,1774801838432,-500.0,0.00012315,2]
[419040494,1774801838441,-151.0,0.00012315,2]
[419040495,1774801838451,-500.0,0.00012315,2]
[419040496,1774801838460,-151.0,0.00012315,2]
[419040497,1774801838470,-500.0,0.00012315,2]
[419040498,1774801838481,-151.0,0.00012315,2]
[419040499,1774801838491,-500.0,0.00012315,2]
[419040500,1774801838500,-151.0,0.00012315,2]
[419040501,1774801838509,-151.0,0.00012315,2]
[419040502,1774801838519,-500.0,0.00012315,2]
[419040503,1774801838529,-500.0,0.00012315,2]
[419040504,1774801838538,-500.0,0.00012315,2]
[419040505,1774801838548,-500.0,0.00012315,2]
[419040506,1774801838557,-500.0,0.00012315,2]
[419040507,1774801838567,-1386.78395259,0.00012315,2]
[419040508,1774801838576,-151.0,0.00012315,2]
[419040509,1774801838586,-788.34,0.00012315,2]
[419040510,1774801838596,-500.0,0.00012373,2]
[419040511,1774801838606,-500.0,0.00012373,2]
[419040512,1774801838615,-500.0,0.00012373,2]
[419040513,1774801838624,-500.0,0.00012373,2]
[419040514,1774801838633,-545.4146401,0.00012373,2]
[419040515,1774801838643,-500.0,0.00012373,2]
[419040516,1774801838652,-500.0,0.00012373,2]
[419040517,1774801838662,-500.44548801,0.00012373,2]
[419040518,1774801838671,-502.6541819,0.00012373,2]
[419040519,1774801838681,-24721.55760303,0.0001239,2]
[419040520,1774801838690,-500.0,0.00012446,2]
[419040521,1774801838700,-150.0,0.000125,2]
[419040522,1774801838709,-4920.20806323,0.0001257,2]
[419040523,1774801838719,-250.0,0.0001257,2]
[419040524,1774801838728,-788.34,0.00012589,2]
[419040525,1774801838738,-41184.81579609,0.00012659,2]
[419040526,1774801838748,-14086.2175,0.00012674,2]
[419040527,1774801838758,-1000.0,0.00012674,2]
[419040528,1774801838767,-24721.55760303,0.00012706,2]
[419040529,1774801838777,-500.0,0.0001272,2]
[419040530,1774801838787,-1000.0,0.00012721,2]
[419040531,1774801838796,-1000.0,0.00012721,2]
[419040532,1774801838806,-335.72179077,0.00012721,2]
[419040533,1774801838816,-1000.0,0.00012721,2]
[419040534,1774801838826,-1000.0,0.00012721,2]
[419040535,1774801838835,-700.06015101,0.00012721,2]
[419040536,1774801838845,-1016.69,0.00012747,2]
[419040537,1774801838854,-208.79,0.00012819,2]
[419040538,1774801838863,-209.21,0.0001283,2]
[419040539,1774801838873,-200.0,0.00012863,2]
[419040540,1774801838883,-1438.09495884,0.00012863,2]
[419040541,1774801838892,-788.34,0.00012863,2]
[419040542,1774801838903,-1600.0,0.00012865,2]
[419040543,1774801838913,-1680.0,0.00012869,2]
[419040544,1774801838923,-7200.0,0.000129,4]
[419040545,1774801838933,-1000.0,0.00012921,2]
[419040546,1774801838943,-1000.0,0.00012921,2]
[419040547,1774801838952,-886.01505148,0.00012921,2]
[419040548,1774801838962,-551.21950508,0.00012921,2]
[419040549,1774801838972,-1000.0,0.00012921,2]
[419040550,1774801838981,-1000.0,0.00012921,2]
[419040551,1774801838991,-500.0,0.00012994,2]
[419040552,1774801839000,-501.0,0.00013014,2]
[419040553,1774801839010,-24721.55760303,0.00013023,2]
[419040554,1774801839020,-41184.81579609,0.00013045,2]
[419040555,1774801839029,-788.34,0.00013137,2]
[419040556,1774801839038,-255.0,0.00013158,2]
[419040557,1774801839048,-33142.0,0.000132,2]
[419040558,1774801839057,-2800.0,0.0001326,2]
[419040559,1774801839067,-500.0,0.00013268,2]
[419040560,1774801839076,-1500.0,0.00013268,2]
[419040561,1774801839086,-1500.0,0.00013268,2]
[419040562,1774801839096,-1500.0,0.00013268,2]
[419040563,1774801839106,-1500.0,0.00013268,2]
[419040564,1774801839115,-150.0,0.00013327,2]
[419040565,1774801839125,-272.177711,0.00013329,2]
[419040566,1774801839134,-24721.55760303,0.0001334,2]
[419040567,1774801839144,-200.0,0.00013411,2]
[419040568,1774801839153,-1491.30447232,0.00013411,2]
[419040569,1774801839163,-788.34,0.00013411,2]
[419040570,1774801839172,-41184.81579609,0.0001343,2]
[419040571,1774801839182,-1500.0,0.00013468,2]
[419040572,1774801839192,-1500.0,0.00013468,2]
[419040573,1774801839202,-1500.0,0.00013468,2]
[419040574,1774801839212,-209.21,0.00013471,2]
[419040575,1774801839221,-3000.0,0.00013534,2]
[419040576,1774801839230,-578.20924308,0.00013543,2]
[419040577,1774801839240,-151.0,0.00013543,2]
[419040578,1774801839249,-500.0,0.00013543,2]
[419040579,1774801839259,-500.0,0.00013543,2]
[419040580,1774801839269,-9552.16786547,0.00013543,2]
[419040581,1774801839279,-500.0,0.00013543,2]
[419040582,1774801839288,-500.0,0.00013543,2]
[419040583,1774801839298,-500.0,0.00013543,2]
[419040584,1774801839308,-500.0,0.00013543,2]
[419040585,1774801839318,-500.0,0.00013543,2]
[419040586,1774801839328,-209.40437684,0.00013543,2]
[419040587,1774801839338,-500.0,0.00013543,2]
[419040588,1774801839348,-500.0,0.00013543,2]
[419040589,1774801839357,-500.0,0.00013543,2]
[419040590,1774801839366,-500.0,0.00013543,2]
[419040591,1774801839376,-500.0,0.00013543,2]
[419040592,1774801839385,-209.40437684,0.00013543,2]
[419040593,1774801839394,-500.0,0.00013543,2]
[419040594,1774801839404,-500.0,0.00013543,2]
[419040595,1774801839414,-500.0,0.00013543,2]
[419040596,1774801839423,-500.0,0.00013543,2]
[419040597,1774801839433,-500.0,0.00013543,2]
[419040598,1774801839443,-500.0,0.00013543,2]
[419040599,1774801839452,-500.0,0.00013543,2]
[419040600,1774801839462,-500.0,0.00013543,2]
[419040601,1774801839471,-500.0,0.00013543,2]
[419040602,1774801839480,-500.0,0.00013543,2]
[419040603,1774801839490,-500.0,0.00013543,2]
[419040604,1774801839499,-500.0,0.00013543,2]
[419040605,1774801839509,-500.0,0.00013543,2]
[419040606,1774801839519,-500.0,0.00013543,2]
[419040607,1774801839528,-500.0,0.00013543,2]
[419040608,1774801839538,-500.0,0.00013543,2]
[419040609,1774801839548,-174.61919141,0.00013543,2]
[419040610,1774801839557,-500.0,0.00013543,2]
[419040611,1774801839567,-500.0,0.00013543,2]
[419040612,1774801839578,-500.0,0.00013543,2]
[419040613,1774801839588,-151.0,0.00013543,2]
[419040614,1774801839597,-500.0,0.00013543,2]
[419040615,1774801839607,-500.0,0.00013543,2]
[419040616,1774801839617,-500.0,0.00013543,2]
[419040617,1774801839626,-693.3919763,0.00013543,2]
[419040618,1774801839636,-250.0,0.00013543,2]
[419040619,1774801839646,-250.0,0.00013543,2]
[419040620,1774801839656,-250.0,0.00013543,2]
[419040621,1774801839665,-200.0,0.00013543,2]
[419040622,1774801839675,-250.0,0.00013543,2]
[419040623,1774801839684,-250.0,0.00013543,2]
[419040624,1774801839694,-250.0,0.00013543,2]
[419040625,1774801839704,-250.0,0.00013543,2]
[419040626,1774801839713,-250.0,0.00013543,2]
[419040627,1774801839723,-279.9045709,0.00013543,2]
[419040628,1774801839732,-250.0,0.00013543,2]
[419040629,1774801839741,-250.0,0.00013543,2]
[419040630,1774801839751,-250.0,0.00013543,2]
[419040631,1774801839761,-151.0,0.00013543,2]
[419040632,1774801839770,-194.63986655,0.00013543,2]
[419040633,1774801839780,-262.90206542,0.00013543,2]
[419040634,1774801839790,-743.50770149,0.00013543,2]
[419040636,1774801839799,-217.15233878,0.00013543,2]
[419040637,1774801839809,-500.0,0.00013543,2]
[419040638,1774801839818,-500.0,0.00013543,2]
[419040639,1774801839827,-500.0,0.00013543,2]
[419040640,1774801839838,-500.0,0.00013543,2]
[419040641,1774801839848,-500.0,0.00013543,2]
[419040642,1774801839858,-500.0,0.00013598,2]
[419040643,1774801839869,-9905.5980765,0.00013598,2]
[419040644,1774801839878,-151.0,0.00013598,2]
[419040645,1774801839888,-272.62944185,0.00013598,2]
[419040646,1774801839897,-500.0,0.00013653,2]
[419040647,1774801839908,-10272.10520533,0.00013653,2]
[419040648,1774801839918,-151.0,0.00013653,2]
[419040649,1774801839928,-282.71673119,0.00013653,2]
[419040650,1774801839938,-24721.55760303,0.00013656,2]
[419040651,1774801839948,-788.34,0.00013685,2]
[419040652,1774801839958,-500.0,0.00013698,2]
[419040653,1774801839968,-500.0,0.00013698,2]
[419040654,1774801839977,-500.0,0.00013698,2]
[419040655,1774801839987,-500.0,0.00013698,2]
[419040656,1774801839997,-500.0,0.00013698,2]
[419040657,1774801840006,-500.0,0.00013698,2]
[419040658,1774801840016,-500.0,0.00013698,2]
[419040659,1774801840025,-500.0,0.00013698,2]
[419040660,1774801840036,-500.0,0.00013698,2]
[419040661,1774801840045,-500.0,0.00013698,2]
[419040662,1774801840055,-500.0,0.00013698,2]
[419040663,1774801840064,-500.0,0.00013698,2]
[419040664,1774801840073,-500.0,0.00013698,2]
[419040665,1774801840083,-500.0,0.00013698,2]
[419040666,1774801840093,-500.0,0.00013698,2]
[419040667,1774801840102,-500.0,0.00013698,2]
[419040668,1774801840111,-500.0,0.00013698,2]
[419040669,1774801840120,-500.0,0.00013698,2]
[419040670,1774801840129,-500.0,0.00013698,2]
[419040671,1774801840139,-500.0,0.00013698,2]
[419040672,1774801840148,-500.0,0.00013698,2]
[419040673,1774801840158,-500.0,0.00013698,2]
[419040674,1774801840167,-500.0,0.00013698,2]
[419040675,1774801840176,-500.0,0.00013698,2]
[419040676,1774801840186,-500.0,0.00013698,2]
[419040677,1774801840195,-500.0,0.00013698,2]
[419040678,1774801840204,-467.79719058,0.00013698,2]
[419040679,1774801840214,-500.0,0.00013698,2]
[419040680,1774801840224,-500.0,0.00013698,2]
[419040681,1774801840233,-161.59374025,0.00013698,2]
[419040682,1774801840243,-500.0,0.00013698,2]
[419040683,1774801840252,-500.0,0.00013698,2]
[419040684,1774801840263,-500.0,0.00013698,2]
[419040685,1774801840272,-500.0,0.00013698,2]
[419040686,1774801840283,-200.0,0.00013699,2]
[419040687,1774801840292,-1276.63,0.00013699,2]
[419040688,1774801840302,-442.32099258,0.00013699,2]
[419040689,1774801840312,-4678.52,0.000137,2]
[419040690,1774801840322,-4789.28,0.000137,2]
[419040691,1774801840331,-4373.32,0.000137,2]
[419040692,1774801840340,-1523.91,0.000137,2]
[419040693,1774801840350,-3286.49,0.000137,2]
[419040694,1774801840360,-20289.73,0.000137,2]
[419040695,1774801840369,-5534.0,0.000137,3]
[419040696,1774801840380,-500.0,0.00013708,2]
[419040697,1774801840390,-10652.17309792,0.00013708,2]
[419040698,1774801840400,-151.0,0.00013708,2]
[419040699,1774801840411,-293.17725025,0.00013708,2]
[419040700,1774801840420,-784.86,0.00013731,2]
[419040701,1774801840430,-500.0,0.00013763,2]
[419040702,1774801840439,-11046.30350255,0.00013763,2]
[419040703,1774801840448,-151.0,0.00013763,2]
[419040704,1774801840458,-304.02480851,0.00013763,2]
[419040705,1774801840467,-196.8646,0.000138,2]
[419040706,1774801840477,-154.51750164,0.00013801,2]
[419040707,1774801840486,-41184.81579609,0.00013816,2]
[419040708,1774801840495,-2000.0,0.00013816,2]
[419040709,1774801840505,-2000.0,0.00013816,2]
[419040710,1774801840516,-2000.0,0.00013816,2]
[419040711,1774801840525,-2000.0,0.00013816,2]
[419040712,1774801840535,-500.0,0.00013818,2]
[419040713,1774801840545,-11455.01673214,0.00013818,2]
[419040714,1774801840554,-151.0,0.00013818,2]
[419040715,1774801840564,-315.27372642,0.00013818,2]
[419040716,1774801840573,-151.0,0.00013829,5]
[419040717,1774801840583,-500.0,0.00013873,2]
[419040718,1774801840593,-11878.85235123,0.00013873,2]
[419040719,1774801840602,-151.0,0.00013873,2]
[419040720,1774801840612,-326.9388543,0.00013873,2]
[419040721,1774801840622,-500.0,0.000139,2]
[419040722,1774801840631,-500.0,0.000139,2]
[419040723,1774801840641,-500.0,0.000139,2]
[419040724,1774801840651,-500.0,0.000139,2]
[419040725,1774801840660,-500.0,0.00013917,2]
[419040726,1774801840669,-500.37169193,0.00013917,2]
[419040727,1774801840679,-500.0,0.00013917,2]
[419040728,1774801840688,-409.661236,0.00013918,7]
[419040729,1774801840699,-337.828882,0.00013918,7]
[419040730,1774801840708,-500.0,0.00013928,2]
[419040731,1774801840718,-12318.36988823,0.00013928,2]
[419040732,1774801840727,-151.0,0.00013928,2]
[419040733,1774801840737,-339.03559191,0.00013928,2]
[419040734,1774801840746,-500.0,0.0001395,2]
[419040735,1774801840756,-500.0,0.0001395,2]
[419040736,1774801840766,-500.0,0.0001395,2]
[419040737,1774801840775,-500.0,0.0001395,2]
[419040738,1774801840785,-489.28276431,0.00013959,2]
[419040739,1774801840794,-788.34,0.00013959,2]
[419040740,1774801840804,-24721.55760303,0.00013973,2]
[419040741,1774801840814,-500.0,0.00013983,2]
[419040742,1774801840825,-12567.04299747,0.00013983,2]
[419040743,1774801840834,-151.0,0.00013983,2]
[419040744,1774801840844,-567.52951657,0.00013994,2]
[419040745,1774801840854,-539.03269784,0.00013994,2]
[419040746,1774801840863,-549.5046014,0.00014,2]
[419040747,1774801840873,-500.0,0.00014,2]
[419040748,1774801840883,-500.0,0.00014,2]
[419040749,1774801840893,-403.83679365,0.00014,2]
[419040750,1774801840904,-500.0,0.00014,2]
[419040751,1774801840913,-500.0,0.00014,2]
[419040752,1774801840925,-500.0,0.00014,2]
[419040753,1774801840935,-500.0,0.00014,2]
[419040754,1774801840945,-160.0,0.00014001,7]
[419040755,1774801840955,-217.7807,0.00014001,7]
[419040756,1774801840964,-275.561401,0.00014001,7]
[419040757,1774801840974,-160.0,0.00014001,7]
[419040758,1774801840984,-182.427596,0.00014001,7]
[419040759,1774801840993,-204.855192,0.00014001,7]
[419040760,1774801841003,-160.0,0.00014001,7]
[419040761,1774801841013,-784.86,0.00014005,2]
[419040762,1774801841023,-395.74377257,0.00014009,2]
[419040763,1774801841032,-2000.0,0.00014016,2]
[419040764,1774801841042,-2000.0,0.00014016,2]
[419040765,1774801841051,-2000.0,0.00014016,2]
[419040766,1774801841061,-500.0,0.00014038,2]
[419040767,1774801841070,-151.0,0.00014038,2]
[419040768,1774801841080,-151.0,0.00014091,2]
[419040769,1774801841090,-1481.23780761,0.00014091,2]